bitfinex-derivatives/quotes_ETHF0:USTF0_20250327
["timestamp","ask_amount","ask_price","bid_price","bid_amount"]
[1743062778437,2.31707,2024.3,2024.2,42.1641]
[1743062778628,1.3292,2024.3,2024.2,42.1641]
[1743062785345,3.149,2024.4,2024.2,43.15198]
[1743062785537,3.2078,2024.5,2024.3,2.41836]
[1743062785732,1.4125,2024.5,2024.4,3.12602]
[1743062785935,2.093,2024.6,2024.4,2.1382]
[1743062786134,3.08075,2024.6,2024.5,1.4305]
[1743062786338,1.66825,2024.6,2024.5,1.4305]
[1743062788244,0.98779,2024.5,2024.2,4.89979]
[1743062788443,0.98779,2024.5,2024.3,42.1136]
[1743062788637,0.98779,2024.5,2024.4,1.3136]
[1743062789641,1.66826,2024.6,2024.4,1.3136]
[1743062789830,0.98777,2024.5,2024.4,1.3136]
[1743062790030,0.6805,2024.6,2024.4,2.3014]
[1743062790343,1.66823,2024.6,2024.4,1.9704]
[1743062790644,0.6805,2024.6,2024.5,1.4012]
[1743062791739,1.66823,2024.6,2024.5,1.4012]
[1743062791940,0.6805,2024.6,2024.5,1.4012]
[1743062792445,1.66823,2024.6,2024.5,1.4012]
[1743062794647,0.6805,2024.6,2024.5,1.4012]
[1743062795249,1.66823,2024.6,2024.5,1.4012]
[1743062798750,3.10253,2024.6,2024.5,1.4012]
[1743062798949,1.4343,2024.6,2024.5,2.38897]
[1743062799153,7.34084631,2024.8,2024.5,2.104]
[1743062799449,1.4343,2024.7,2024.6,2.41433]
[1743062800152,1.4343,2024.7,2024.6,1.4266]
[1743062800545,1.4343,2024.7,2024.6,2.41433]
[1743062801346,1.4343,2024.7,2024.6,6.72433]
[1743062801549,1.4343,2024.7,2024.6,2.41433]
[1743062801953,1.4343,2024.7,2024.6,6.70433]
[1743062802344,1.4343,2024.7,2024.6,2.41433]
[1743062802551,1.4343,2024.7,2024.6,6.13433]
[1743062803545,2.42198,2024.7,2024.6,1.4266]
[1743062804846,0.98777,2024.5,2024.4,1.6446]
[1743062805052,3.65196,2024.6,2024.4,2.9601]
[1743062805245,2.31026,2024.6,2024.5,1.3155]
[1743062806053,2.31026,2024.6,2024.5,2.30327]
[1743062807247,2.31026,2024.6,2024.5,1.3155]
[1743062807556,0.9878,2024.5,2024.3,42.45553]
[1743062807749,0.9878,2024.5,2024.4,2.34202]
[1743062808256,2.31026,2024.6,2024.4,2.34202]
[1743062808954,2.31026,2024.6,2024.5,1.3542]
[1743062809659,2.31026,2024.6,2024.4,0.98782]
[1743062809961,2.31026,2024.6,2024.4,1.3542]
[1743062810259,1.3225,2024.6,2024.4,2.34199]
[1743062810652,2.31023,2024.6,2024.4,1.3542]
[1743062810848,0.98777,2024.5,2024.2,3.9011]
[1743062811052,3.2078,2024.5,2024.2,3.2078]
[1743062811356,4.19561,2024.5,2024.3,40.8]
[1743062812951,3.2078,2024.5,2024.3,42.1661]
[1743062813152,4.19558,2024.5,2024.3,42.1661]
[1743062813462,4.19558,2024.5,2024.4,1.3661]
[1743062813757,3.2078,2024.5,2024.4,1.3661]
[1743062814456,4.19557,2024.5,2024.4,1.3661]
[1743062815163,3.2078,2024.5,2024.4,1.3661]
[1743062815555,4.19557,2024.5,2024.4,1.3661]
[1743062818663,5.62207,2024.5,2024.4,1.3661]
[1743062820962,0.98782,2024.4,2024.3,40.8]
[1743062821162,2.35852,2024.4,2024.2,4.5284]
[1743062821362,1.3593,2024.3,2024.2,4.5284]
[1743062821564,2.73,2024.3,2024.2,44.0078]
[1743062822166,3.2078,2024.5,2024.2,44.0078]
[1743062822359,3.2078,2024.5,2024.3,0.98784]
[1743062822565,1.3707,2024.4,2024.3,0.98784]
[1743062822764,1.3707,2024.4,2024.2,44.0078]
[1743062822765,1.3707,2024.4,2024.2,44.99569]
[1743062822964,1.3707,2024.4,2024.2,49.45569]
[1743062823268,1.3707,2024.4,2024.2,44.99569]
[1743062823569,1.3707,2024.4,2024.2,47.15569]
[1743062823763,2.35854,2024.4,2024.2,44.0078]
[1743062823966,2.35854,2024.4,2024.2,46.3978]
[1743062824166,1.3791,2024.3,2024.2,44.99571]
[1743062824366,1.3791,2024.3,2024.2,47.11571]
[1743062825166,1.3791,2024.3,2024.2,44.99571]
[1743062825370,1.3791,2024.3,2024.2,47.21571]
[1743062825664,1.3791,2024.3,2024.2,47.07571]
[1743062825872,1.3791,2024.3,2024.2,47.28571]
[1743062826270,1.3791,2024.3,2024.2,44.99571]
[1743062826771,2.36697,2024.3,2024.2,44.0078]
[1743062826961,1.3791,2024.3,2024.2,47.14572]
[1743062827162,1.3791,2024.3,2024.2,44.99572]
[1743062827572,1.3791,2024.3,2024.2,47.26572]
[1743062827870,1.3791,2024.3,2024.2,44.99572]
[1743062828167,1.3791,2024.3,2024.2,46.92572]
[1743062828369,1.3791,2024.3,2024.2,44.99572]
[1743062828569,1.3791,2024.3,2024.2,47.10572]
[1743062828770,1.3791,2024.3,2024.2,44.99572]
[1743062829167,3.2078,2024.5,2024.4,0.98782]
[1743062829372,4.5707,2024.5,2024.4,4.90782]
[1743062829575,4.5707,2024.5,2024.4,3.35782]
[1743062829875,3.2078,2024.5,2024.4,0.98782]
[1743062830372,3.2078,2024.5,2024.4,2.94782]
[1743062830973,4.5707,2024.5,2024.4,2.94782]
[1743062831470,3.2078,2024.5,2024.4,2.94782]
[1743062831773,3.2078,2024.5,2024.4,0.98782]
[1743062831969,3.2078,2024.5,2024.4,3.27782]
[1743062832474,3.2078,2024.5,2024.4,0.98782]
[1743062832864,3.2078,2024.5,2024.4,3.19782]
[1743062833590,3.2078,2024.5,2024.4,0.98782]
[1743062833780,3.2078,2024.5,2024.4,2.91782]
[1743062834488,3.2078,2024.5,2024.4,2.96782]
[1743062834674,1.4262,2024.7,2024.6,0.98773]
[1743062834882,1.4262,2024.7,2024.6,3.17773]
[1743062835189,1.4262,2024.7,2024.6,3.11773]
[1743062835485,3.21520631,2024.8,2024.7,0.98768]
[1743062835686,4.54550631,2024.8,2024.7,3.24768]
[1743062835989,4.54550631,2024.8,2024.4,2.46951]
[1743062835990,0.98773,2024.6,2024.2,47.1388]
[1743062836187,0.98777,2024.6,2024.4,0.9878]
[1743062836485,2.31807,2024.5,2024.4,0.9878]
[1743062836790,2.98497,2024.5,2024.4,0.9878]
[1743062837190,1.9972,2024.5,2024.4,0.9878]
[1743062837883,2.985,2024.5,2024.3,1.65446]
[1743062838091,1.4355,2024.4,2024.3,0.98787]
[1743062838287,1.4355,2024.4,2024.3,3.33787]
[1743062838487,1.4355,2024.4,2024.3,2.91787]
[1743062838786,1.4355,2024.4,2024.3,2.38767]
[1743062838991,1.4355,2024.4,2024.3,4.77767]
[1743062839181,1.4355,2024.4,2024.3,2.38767]
[1743062839382,1.4355,2024.4,2024.3,4.39767]
[1743062839584,1.4355,2024.4,2024.3,2.38767]
[1743062839783,1.4355,2024.4,2024.3,4.71767]
[1743062840183,1.4355,2024.4,2024.3,2.38767]
[1743062840693,1.4355,2024.4,2024.3,4.53767]
[1743062840889,1.4355,2024.4,2024.3,2.38767]
[1743062841288,2.42332,2024.4,2024.3,1.3998]
[1743062841586,2.42336,2024.4,2024.2,44.9957]
[1743062841790,2.96017,2024.3,2024.2,44.9957]
[1743062841992,1.9723,2024.3,2024.2,44.0078]
[1743062842292,2.96017,2024.3,2024.2,44.0078]
[1743062842494,1.9723,2024.3,2024.2,44.99572]
[1743062842982,1.9723,2024.3,2024.2,44.0078]
[1743062843285,1.9723,2024.3,2024.2,44.99572]
[1743062843485,1.9723,2024.3,2024.2,46.30252]
[1743062844696,1.9723,2024.3,2024.2,45.3146]
[1743062844890,1.9723,2024.3,2024.2,46.30252]
[1743062845290,1.9723,2024.3,2024.2,48.43252]
[1743062845795,1.9723,2024.3,2024.2,46.30252]
[1743062848789,1.9723,2024.3,2024.2,48.22252]
[1743062848995,1.9723,2024.3,2024.2,46.30252]
[1743062853094,1.9723,2024.3,2024.2,48.48252]
[1743062853292,1.9723,2024.3,2024.2,46.30252]
[1743062853494,1.9723,2024.3,2024.2,48.67252]
[1743062853686,1.9723,2024.3,2024.2,48.64252]
[1743062853891,1.9723,2024.3,2024.2,46.30252]
[1743062854394,1.9723,2024.3,2024.2,48.29252]
[1743062854595,1.9723,2024.3,2024.2,46.30252]
[1743062854797,1.9723,2024.3,2024.2,48.61252]
[1743062854997,1.9723,2024.3,2024.2,46.30252]
[1743062855198,1.3063,2024.3,2024.2,48.40252]
[1743062855895,1.3063,2024.3,2024.2,46.30252]
[1743062856200,1.3063,2024.3,2024.2,45.3146]
[1743062856395,1.3063,2024.3,2024.2,46.30252]
[1743062857499,1.3063,2024.3,2024.2,48.22252]
[1743062857799,1.3063,2024.3,2024.2,46.30252]
[1743062858590,1.3063,2024.3,2024.2,48.67252]
[1743062858797,1.3063,2024.3,2024.2,46.30252]
[1743062861400,1.3063,2024.3,2024.2,43.09472]
[1743062866106,1.3063,2024.3,2024.2,42.1068]
[1743062866305,2.29417,2024.3,2024.2,42.1068]
[1743062866608,1.3063,2024.3,2024.2,43.09472]
[1743062866817,1.3063,2024.3,2024.2,42.1068]
[1743062867210,2.29417,2024.3,2024.2,42.1068]
[1743062867409,2.29417,2024.3,2024.2,40.8]
[1743062867599,0.98812,2023.8,2023.7,3.2078]
[1743062867799,0.9881,2023.9,2023.7,4.5587]
[1743062868109,0.6588,2023.8,2023.7,4.5587]
[1743062868308,3.68782,2023.8,2023.7,1.3509]
[1743062868510,3.68782,2023.8,2023.7,40.8]
[1743062869111,2.6997,2023.8,2023.7,40.8]
[1743062869809,2.6997,2023.8,2023.4,4.5313]
[1743062870005,4.5119,2023.7,2023.4,4.5313]
[1743062870207,1.3799,2023.6,2023.5,40.8]
[1743062871200,1.3799,2023.6,2023.2,2.3119]
[1743062871406,0.6827,2023.5,2023.2,2.31188]
[1743062871715,1.4163,2023.4,2023.3,42.1235]
[1743062872513,2.134,2023.4,2023.3,42.1235]
[1743062873113,2.134,2023.4,2023.3,40.8]
[1743062873308,5.3418,2023.4,2023.3,40.8]
[1743062873814,5.3418,2023.4,2023.1,2.31196]
[1743062874009,5.3418,2023.4,2023.0,3.9095]
[1743062874010,1.4163,2023.3,2023.2,2.31191]
[1743062875421,0.6827,2023.5,2023.4,0.98831]
[1743062876114,3.2078,2023.7,2023.3,1.4079]
[1743062876316,7.7526,2024.0,2023.4,40.8]
[1743062876511,0.99552631,2023.8,2023.5,0.98823]
[1743062876711,1.4048,2023.7,2023.6,1.4327]
[1743062877009,1.4048,2023.7,2023.6,2.42091]
[1743062877718,1.4048,2023.7,2023.6,1.4327]
[1743062878412,2.39297,2023.7,2023.6,1.4327]
[1743062878922,0.98822,2023.6,2023.4,40.8]
[1743062879119,3.159,2023.5,2022.7,3.2078]
[1743062879317,3.2078,2023.3,2023.2,0.98841]
[1743062879518,4.5578,2023.4,2023.3,0.98836]
[1743062880109,1.3918,2023.4,2023.3,0.98836]
[1743062880509,1.3918,2023.4,2023.3,2.41446]
[1743062881422,1.3918,2023.4,2023.3,3.09806]
[1743062884616,3.8433,2023.7,2023.6,0.98821]
[1743062884817,5.2152,2023.7,2023.4,1.3868]
[1743062885018,0.98826,2023.5,2023.4,1.3868]
[1743062885826,0.98826,2023.5,2023.4,2.37511]
[1743062886028,2.36015,2023.6,2023.4,2.37511]
[1743062886426,1.3719,2023.5,2023.4,2.37511]
[1743062886728,1.3719,2023.5,2023.4,0.98831]
[1743062888924,2.3602,2023.5,2023.3,4.19615]
[1743062889126,1.3187,2023.4,2023.3,4.19615]
[1743062889428,0.98836,2023.3,2023.0,5.988]
[1743062889618,1.4018,2023.2,2023.1,0.98842]
[1743062890019,1.4018,2023.2,2023.1,41.78842]
[1743062892527,1.4018,2023.2,2023.1,40.8]
[1743062893540,2.39021,2023.2,2023.1,40.8]
[1743062893719,1.4018,2023.2,2023.1,40.8]
[1743062893921,1.4018,2023.2,2023.1,41.78846]
[1743062897730,1.3187,2023.4,2023.3,0.98836]
[1743062899032,1.3187,2023.4,2023.3,2.38156]
[1743062899933,2.7054,2023.4,2023.3,2.38156]
[1743062901025,3.2078,2023.6,2023.5,0.98826]
[1743062902826,4.5821,2023.6,2023.5,0.98826]
[1743062903130,1.3743,2023.6,2023.5,0.98826]
[1743062903632,1.3743,2023.6,2023.5,1.66836]
[1743062904733,1.3743,2023.6,2023.5,0.98826]
[1743062905135,7.7621,2023.6,2023.0,9.1958]
[1743062905337,0.98836,2023.3,2023.2,1.4248]
[1743062905627,7.7621,2023.6,2023.0,10.18429]
[1743062905628,1.3776,2023.5,2023.0,10.18429]
[1743062905936,2.058,2023.2,2023.0,10.18429]
[1743062906237,2.0308,2023.1,2023.0,11.60909]
[1743062909237,2.0308,2023.1,2023.0,8.40129]
[1743062910239,2.0308,2023.1,2023.0,2.41331]
[1743062910743,2.0308,2023.1,2022.9,41.78852]
[1743062910937,1.4027,2023.0,2022.9,43.09712]
[1743062918454,1.4027,2023.0,2022.9,42.1086]
[1743062918953,1.4027,2023.0,2022.9,43.09716]
[1743062919140,1.4027,2023.0,2022.9,42.1086]
[1743062919341,1.4027,2023.0,2022.9,43.09716]
[1743062919546,1.4027,2023.0,2022.9,42.1086]
[1743062920045,1.4027,2023.0,2022.9,40.8]
[1743062920245,1.4027,2023.0,2022.9,42.231]
[1743062921055,1.4027,2023.0,2022.9,43.21956]
[1743062924858,1.4027,2023.0,2022.9,42.231]
[1743062925452,2.39121,2023.0,2022.9,42.231]
[1743062925653,1.4027,2023.0,2022.9,42.231]
[1743062925951,1.4027,2023.0,2022.9,1.431]
[1743062926354,2.39121,2023.0,2022.9,1.431]
[1743062926757,1.4027,2023.0,2022.9,1.431]
[1743062926957,2.39121,2023.0,2022.9,1.431]
[1743062927360,1.4027,2023.0,2022.9,1.431]
[1743062927562,2.39121,2023.0,2022.9,1.431]
[1743062927861,1.4027,2023.0,2022.9,1.431]
[1743062928363,1.4027,2023.0,2022.8,40.8]
[1743062928561,2.39124,2023.0,2022.8,42.2289]
[1743062928756,2.39124,2023.0,2022.9,1.4289]
[1743062928962,0.98854,2023.0,2022.9,1.4289]
[1743062934566,0.6532,2023.1,2022.7,3.2078]
[1743062934767,0.98854,2023.0,2022.8,1.2969]
[1743062934968,0.98856,2022.9,2022.8,1.2969]
[1743062935167,0.98854,2023.0,2022.8,43.0855]
[1743062935366,0.98854,2023.0,2022.9,1.3269]
[1743062935559,0.6532,2023.1,2022.9,1.3269]
[1743062935759,0.98851,2023.0,2022.9,1.3269]
[1743062936165,1.64168,2023.1,2022.9,1.3269]
[1743062936361,0.98851,2023.0,2022.9,1.3269]
[1743062936568,0.98851,2023.0,2022.2,52.30616]
[1743062936569,6.3668,2023.0,2022.1,3.2078]
[1743062936763,3.2078,2022.6,2022.5,0.98875]
[1743062937266,4.19654,2022.6,2022.3,2.31572]
[1743062937568,4.91054,2022.6,2022.4,0.98878]
[1743062937767,3.9218,2022.6,2022.5,2.31565]
[1743062937968,0.714,2022.6,2022.5,2.31565]
[1743062940071,0.00740631,2022.8,2022.5,1.3269]
[1743062940269,0.00740631,2022.8,2022.6,3.64546]
[1743062940573,0.00740631,2022.8,2022.7,1.3174]
[1743062940774,0.99600631,2022.8,2022.7,1.3174]
[1743062940969,0.00740631,2022.8,2022.7,2.30605]
[1743062942474,0.99600631,2022.8,2022.7,1.3174]
[1743062943271,0.98867,2022.7,2022.5,0.98875]
[1743062943472,3.8764,2022.7,2022.2,0.98888]
[1743062943672,0.98881,2022.4,2022.2,0.98888]
[1743062943875,0.98885,2022.3,2022.1,43.16123]
[1743062944069,0.6864,2022.3,2022.2,1.34]
[1743062944564,1.67525,2022.3,2022.2,1.34]
[1743062944765,0.6864,2022.3,2022.2,1.34]
[1743062945273,0.6864,2022.3,2022.2,2.3289]
[1743062945772,3.192,2022.4,2022.2,2.3289]
[1743062945974,3.192,2022.4,2022.3,1.3305]
[1743062946180,4.1808,2022.4,2022.3,1.3305]
[1743062946677,4.1808,2022.4,2022.1,42.47303]
[1743062946879,0.98885,2022.3,2022.2,1.3305]
[1743062947475,4.18083,2022.4,2022.2,1.3305]
[1743062948565,0.6881,2022.3,2022.2,1.3305]
[1743062948775,3.10275,2022.3,2022.2,1.3305]
[1743062950073,2.1139,2022.3,2022.2,1.3305]
[1743062951677,3.10275,2022.3,2022.2,1.3305]
[1743062951978,2.1139,2022.3,2022.2,1.3305]
[1743062952279,3.10275,2022.3,2022.2,1.3305]
[1743062953784,0.9889,2022.2,2021.9,1.63793]
[1743062954077,0.9889,2022.2,2022.0,1.3194]
[1743062954078,2.3459,2022.2,2022.0,1.3194]
[1743062954278,3.0218,2022.2,2022.0,42.1194]
[1743062954478,1.357,2022.1,2022.0,42.1194]
[1743062954679,2.34595,2022.1,2022.0,42.1194]
[1743062955680,1.357,2022.1,2022.0,42.1194]
[1743062956168,1.357,2022.1,2022.0,43.1084]
[1743062956579,1.357,2022.1,2022.0,42.1194]
[1743062956881,2.34595,2022.1,2022.0,42.1194]
[1743062957388,1.357,2022.1,2022.0,43.1084]
[1743062957576,1.357,2022.1,2022.0,42.1194]
[1743062957982,1.357,2022.1,2022.0,43.1084]
[1743062958183,1.357,2022.1,2022.0,42.1194]
[1743062958983,1.357,2022.1,2022.0,43.1084]
[1743062959576,1.357,2022.1,2022.0,42.1194]
[1743062959780,2.34595,2022.1,2022.0,42.1194]
[1743062960474,7.042,2022.1,2021.2,3.2078]
[1743062960678,0.98927,2021.5,2021.3,2.33132]
[1743062960889,0.98921,2021.6,2021.4,2.35837]
[1743062961077,0.7184,2021.5,2021.4,0.98929]
[1743062961385,4.5988,2021.5,2020.9,1.342]
[1743062961582,4.22132,2021.4,2021.1,0.98941]
[1743062961881,0.98934,2021.3,2021.2,42.1691]
[1743062962079,0.98934,2021.3,2021.2,40.8]
[1743062962284,4.5988,2021.5,2020.7,4.19742]
[1743062962582,4.5988,2021.5,2020.6,0.2043981]
[1743062962583,3.2078,2021.2,2020.6,0.2043981]
[1743062962773,0.98961,2020.8,2020.7,40.8]
[1743062962973,4.26961,2020.8,2020.7,40.8]
[1743062963182,0.98963,2020.7,2020.6,0.2043981]
[1743062963381,1.66223,2020.7,2020.6,0.2043981]
[1743062963770,1.66223,2020.7,2020.6,41.0043981]
[1743062964384,1.66223,2020.7,2020.6,0.2043981]
[1743062964873,0.6726,2020.7,2020.6,0.2043981]
[1743062965076,1.66223,2020.7,2020.6,0.2043981]
[1743062966374,3.9626,2020.7,2020.6,0.2043981]
[1743062966578,0.7162,2020.8,2020.6,0.2043981]
[1743062966779,0.7162,2020.8,2020.6,41.9940781]
[1743062966988,1.7058,2020.8,2020.6,41.9940781]
[1743062967477,1.7058,2020.8,2020.6,41.0043981]
[1743062968284,0.98963,2020.7,2020.6,41.0043981]
[1743062968484,1.70581,2020.8,2020.6,41.0043981]
[1743062968782,0.98963,2020.7,2020.6,41.0043981]
[1743062969081,1.70582,2020.8,2020.6,41.0043981]
[1743062969488,0.98963,2020.7,2020.6,41.0043981]
[1743062969785,0.98963,2020.7,2020.6,0.2043981]
[1743062971684,0.98978,2020.4,2020.3,40.8]
[1743062971887,0.99024,2019.5,2019.3,3.2078]
[1743062972086,3.2078,2019.5,2019.1,2.28093753]
[1743062972386,3.332,2019.4,2019.1,2.28093753]
[1743062972890,0.99032,2019.3,2019.2,40.8]
[1743062973183,0.99042,2019.1,2019.0,4.5475]
[1743062973588,3.332,2019.4,2019.0,4.5475]
[1743062973990,0.99037,2019.2,2019.0,4.5475]
[1743062974184,6.5428,2019.2,2018.6,3.2078]
[1743062974386,3.371,2019.3,2018.9,3.2078]
[1743062974688,3.21522574,2019.5,2018.9,5.4378]
[1743062974891,3.21522574,2019.5,2019.2,3.2078]
[1743062974892,0.00742574,2019.5,2019.2,3.2078]
[1743062975089,0.00742574,2019.5,2019.3,0.6854]
[1743062975489,0.00742574,2019.5,2019.4,0.99027]
[1743062975683,0.00742574,2019.5,2019.3,2.39187]
[1743062975880,0.00742574,2019.5,2019.4,0.99027]
[1743062976085,0.00742574,2019.5,2019.3,2.39188]
[1743062976392,0.99764574,2019.5,2019.4,40.8]
[1743062976693,0.00742574,2019.5,2019.4,40.8]
[1743062976893,0.99764574,2019.5,2019.4,40.8]
[1743062977599,4.20544574,2019.5,2019.4,40.8]
[1743062978693,4.65172574,2019.5,2019.4,42.1107]
[1743062978893,4.65172574,2019.5,2019.4,43.10097]
[1743062979200,3.21522574,2019.5,2019.4,43.10097]
[1743062979798,3.21522574,2019.5,2019.4,42.1107]
[1743062980201,3.21522574,2019.5,2019.4,43.10097]
[1743062981096,0.00742574,2019.5,2019.4,43.10097]
[1743062981496,0.00742574,2019.5,2019.4,43.13097]
[1743062982001,0.00742574,2019.5,2019.4,45.22097]
[1743062982191,0.00742574,2019.5,2019.4,43.10097]
[1743062982497,0.00742574,2019.5,2019.4,45.43097]
[1743062982696,0.00742574,2019.5,2019.4,45.25097]
[1743062982895,0.00742574,2019.5,2019.4,43.10097]
[1743062985115,3.2078,2019.8,2019.7,0.99012]
[1743062985504,0.98996,2020.1,2019.9,0.98999]
[1743062985810,2.33471,2020.2,2020.0,2.36608]
[1743062986010,2.33471,2020.2,2020.1,1.3761]
[1743062987013,1.3448,2020.2,2020.1,2.36603]
[1743062987211,2.33468,2020.2,2020.1,1.3761]
[1743062987610,0.98988,2020.2,2020.1,1.3761]
[1743062987910,2.41898,2020.2,2020.1,1.3761]
[1743062988411,1.4291,2020.2,2020.1,2.36603]
[1743062990817,1.4291,2020.2,2020.1,1.3761]
[1743062991010,2.41898,2020.2,2020.1,1.3761]
[1743062992314,1.4291,2020.2,2019.9,0.00742574]
[1743062992510,0.98998,2020.0,2019.9,0.00742574]
[1743062992920,2.29998,2020.0,2019.9,0.00742574]
[1743062993117,3.63218,2020.0,2019.9,0.00742574]
[1743062996319,6.83998,2020.0,2019.9,0.00742574]
[1743062996711,9.33998,2020.0,2019.9,0.00742574]
[1743062997719,0.9902,2019.6,2019.4,2.28093753]
[1743062997913,3.09892,2019.5,2019.4,1.3856]
[1743062998110,2.1087,2019.5,2019.4,1.3856]
[1743062998312,3.09892,2019.5,2019.4,1.3856]
[1743062999517,2.1087,2019.5,2019.4,1.3856]
[1743062999716,2.1087,2019.5,2019.4,2.37587]
[1743062999921,2.1087,2019.5,2019.4,1.3856]
[1743063000223,3.09892,2019.5,2019.4,1.3856]
[1743063000722,1.4129,2019.5,2019.4,2.37587]
[1743063000924,3.2078,2019.6,2019.5,0.99022]
[1743063001122,4.6426,2019.6,2019.5,2.32862]
[1743063001521,4.6426,2019.6,2019.3,0.6478]
[1743063001710,0.99027,2019.4,2019.3,42.1384]
[1743063001910,0.99042,2019.1,2018.9,4.1983]
[1743063002118,2.42515,2019.3,2019.0,0.99046]
[1743063002319,0.99042,2019.1,2019.0,42.1384]
[1743063002911,1.44222574,2019.2,2019.0,42.1384]
[1743063003228,1.44222574,2019.2,2019.1,2.30242]
[1743063004022,3.2078,2019.6,2019.1,6.79242]
[1743063004224,4.5045,2019.6,2019.2,5.1872]
[1743063004422,3.2078,2019.6,2019.3,1.312]
[1743063004725,0.99032,2019.3,2019.2,3.2078]
[1743063005224,2.3874,2019.4,2019.2,3.2078]
[1743063005424,0.99032,2019.3,2019.2,4.5198]
[1743063007425,2.3874,2019.4,2019.2,4.5198]
[1743063007722,2.3874,2019.4,2019.3,1.3574]
[1743063007928,0.99032,2019.3,2019.2,3.2078]
[1743063008222,0.99032,2019.3,2019.2,4.5652]
[1743063008927,0.99032,2019.3,2019.2,3.2078]
[1743063009826,1.3971,2019.4,2019.2,3.2078]
[1743063010028,2.38737,2019.4,2019.3,1.3201]
[1743063010225,0.6923,2019.4,2019.3,1.3201]
[1743063010530,0.00742574,2019.5,2019.3,1.3201]
[1743063010720,0.00742574,2019.5,2019.4,0.99027]
[1743063010922,0.00742574,2019.5,2019.4,1.63847]
[1743063011121,0.00742574,2019.5,2019.4,2.95857]
[1743063012829,0.00742574,2019.5,2019.4,1.9683]
[1743063013025,0.00742574,2019.5,2019.4,2.95857]
[1743063013930,4.87184,2019.9,2019.7,0.99009]
[1743063014130,0.99007,2019.8,2019.6,0.99014]
[1743063014325,3.8818,2019.9,2019.7,3.10782]
[1743063014529,4.87182,2019.9,2019.8,1.4205]
[1743063015629,4.87186,2019.9,2019.7,0.99012]
[1743063015832,4.87186,2019.9,2019.7,2.33792]
[1743063016328,4.87186,2019.9,2019.8,1.3478]
[1743063018638,3.2078,2019.9,2019.8,1.3478]
[1743063018828,6.25542,2019.9,2019.8,1.3478]
[1743063019440,5.2654,2019.9,2019.5,0.6744]
[1743063019740,0.99015,2019.7,2019.5,2.39962]
[1743063020036,4.33915,2019.7,2019.6,1.4094]
[1743063021525,3.349,2019.7,2019.3,0.6779]
[1743063021726,0.99032,2019.3,2019.0,0.00742574]
[1743063021936,0.99032,2019.3,2019.1,1.4354]
[1743063022338,0.99032,2019.3,2019.1,42.2354]
[1743063022635,4.6973,2019.4,2019.2,4.6432]
[1743063022636,5.68759,2019.4,2019.2,4.6432]
[1743063022834,5.68759,2019.4,2019.3,1.4354]
[1743063023228,3.354,2019.4,2019.3,1.4354]
[1743063023430,3.2078,2019.6,2019.3,3.74182]
[1743063023632,7.551,2019.6,2019.3,3.74178]
[1743063023833,6.5608,2019.6,2019.4,1.4354]
[1743063024228,0.99022,2019.5,2019.4,1.4354]
[1743063024736,0.99037,2019.2,2019.1,40.8]
[1743063024938,0.99037,2019.2,2019.1,42.1784]
[1743063025336,0.99042,2019.1,2019.0,0.00742574]
[1743063025540,2.35522,2019.1,2019.0,0.00742574]
[1743063026238,1.3648,2019.1,2019.0,0.00742574]
[1743063026438,4.3554,2019.2,2019.0,1.38582574]
[1743063026637,3.365,2019.2,2019.1,0.99042]
[1743063026832,3.2078,2019.3,2019.1,1.65542]
[1743063027031,3.2078,2019.3,2019.2,2.0908]
[1743063027535,4.19812,2019.3,2019.2,2.0908]
[1743063027837,3.2078,2019.3,2019.0,0.00742574]
[1743063028041,4.19815,2019.3,2019.0,1.70957574]
[1743063028341,0.99039,2019.2,2019.0,0.71912574]
[1743063028538,4.19815,2019.3,2019.0,1.70956574]
[1743063029038,3.2078,2019.3,2019.0,0.71912574]
[1743063029241,4.19813,2019.3,2019.1,2.36952]
[1743063029440,4.19813,2019.3,2019.2,1.3791]
[1743063029641,3.2078,2019.3,2019.2,2.36947]
[1743063029839,4.19812,2019.3,2019.2,1.3791]
[1743063030041,3.2078,2019.3,2019.2,2.36947]
[1743063030433,3.2078,2019.3,2019.2,1.3791]
[1743063031644,4.19812,2019.3,2019.2,1.3791]
[1743063031847,3.2078,2019.3,2019.2,2.36947]
[1743063032143,3.358,2019.4,2019.2,4.5869]
[1743063032346,0.99022,2019.5,2019.3,2.41148]
[1743063032638,0.99022,2019.5,2019.4,1.4212]
[1743063032844,0.99029,2019.4,2019.2,4.19815]
[1743063033036,0.99029,2019.4,2019.3,1.4073]
[1743063033341,0.99026,2019.5,2019.3,1.4073]
[1743063033640,5.57714,2019.7,2019.3,1.4073]
[1743063033838,7.943,2019.7,2019.4,0.6522]
[1743063034139,3.2078,2019.7,2019.6,0.99017]
[1743063034734,4.35536574,2020.1,2019.9,0.99002]
[1743063034937,4.35536574,2020.1,2020.0,1.4073]
[1743063035842,3.36542574,2020.1,2020.0,1.4073]
[1743063036141,0.00742574,2020.1,2020.0,2.39728]
[1743063036331,0.00742574,2020.1,2020.0,1.4073]
[1743063036536,0.00742574,2020.1,2020.0,2.39728]
[1743063037236,0.00742574,2020.1,2020.0,1.4073]
[1743063037448,0.00742574,2020.1,2020.0,2.39728]
[1743063038544,0.99735574,2020.1,2020.0,1.4073]
[1743063038747,3.37042574,2020.1,2019.5,3.2078]
[1743063038937,0.99015,2019.7,2019.5,3.2078]
[1743063039231,1.4338,2019.6,2019.5,3.2078]
[1743063039431,1.4338,2019.6,2019.5,4.5686]